[Event "1st Serbian League 2022"]
[Site "Vrnjacka Banja"]
[Date "2022.09.20"]
[Round "1.1"]
[White "Sanal, Vahap"]
[Black "Tadic, Stefan"]
[Result "1-0"]
[ECO "C55"]
[WhiteElo "2595"]
[BlackElo "2318"]
[Annotator "TA"]
[PlyCount "69"]
[EventDate "2022.09.20"]
[EventType "team-tourn"]
[EventCountry "SRB"]
[SourceTitle "playchess.com"]
[Source "ChessBase"]
[SourceQuality "1"]
[TimeControl "40/5400+30:1800+30"]

{[%evp 13,69,38,39,12,16,0,47,27,26,31,98,93,96,100,94,91,86,68,72,65,62,57,65,63,78,14,49,30,35,28,46,0,0,0,0,0,0,0,42,47,37,10,12,28,47,17,199,252,225,196,476,475,687,660,891,891,940,930]} 1. e4 {[%emt 0:00:23]} e5 {[%emt 0:00:34]} 2. Nf3 {[%emt 0:01:16]} Nc6 {[%emt 0:00:33]} 3. Bc4 {[%emt 0:00:42]} Nf6 {[%emt 0:01:01]} 4. d3 {[%emt 0:00:23]} Be7 {[%emt 0:01:01]} 5. O-O {[%emt 0:01:20]} O-O {[%emt 0:01:03]} 6. a4 {[%emt 0:00:26]} d5 {[%emt 0:05:33]} 7. exd5 {[%emt 0:00:09]} Nxd5 {[%emt 0:00:06] RECAPT} 8. Re1 {[%emt 0:00:18] CPLX 2.4 27 (h2-h3) (=27). C55: Two Knights: 4 d3, 4 d4 exd4 5 e5 and Max Lange Attack.} Bg4 {[%emt 0:01:30] EASY} 9. h3 {[%emt 0:02:00] CPLX 2.8 16 (a4-a5) (=22)} Bh5 {[%emt 0:03:20] [#] CPLX 3.0 47 (Bg4xf3) (=16)} (9... Bxf3 $11 10. Qxf3 Nb6) 10. a5 $146 {[%emt 0:17:45] MISS-g2-g4 20 (g2-g4) (=21). White is slightly better.} (10. g4 $5 {[%cal Rg4h5]} Bg6 11. Nxe5 $14) ({Predecessor:} 10. Nbd2 Nb6 11. Ba2 a5 12. Nf1 Bc5 13. Ng3 Bg6 14. Be3 Bb4 15. c3 Be7 16. Bxb6 cxb6 17. Nxe5 Nxe5 18. Rxe5 {1-0 (49) Feller,S (2568)-Gatineau,Y (2423) Playchess.com INT 2021}) 10... f6 {[%emt 0:33:17] BESTDEEP} 11. c3 {[%emt 0:03:26] BESTDEEP} Kh8 {[%emt 0:08:49] [#] CPLX 3.0 67 (Ra8-b8) (=23)} ({Better is} 11... Rb8 $14) 12. Qb3 $1 $16 {[%emt 0:04:30][%csl LRb7,LRd5] DEEPSTRONG} Nf4 {[%emt 0:09:41] MISS-Bh5xf3 3 (Bh5xf3) (=20)} 13. Bxf4 {[%emt 0:10:22] EASY} exf4 {[%emt 0:02:20] RECAPT} 14. Nbd2 {[%emt 0:02:16] CPLX 2.7} (14. Qxb7 Bxf3 15. gxf3 Ne5 $14) 14... Rb8 {[%emt 0:02:45] CPLX 2.7} 15. Qa4 {[%emt 0:09:04] CPLX 2.7 18 (Bc4-d5) (=10)} Bd6 {[%emt 0:01:15] CPLX 2.8} 16. d4 {[%emt 0:01:46] Inhibits Ne5. CPLX 2.7} Ne7 {[%emt 0:01:16] BESTDEEP} 17. b4 {[%emt 0:05:39] White is more active. CPLX 2.7 5 (Qa4-b5) (=9)} c6 {[%emt 0:02:56] CPLX 2.7} 18. Qb3 {[%emt 0:01:03] CPLX 2.8} Qc7 {[%emt 0:04:03][%cal Oe7d5] CPLX 2.7 15 (b7-b6) (=11)} 19. Re6 {[%emt 0:01:06] RELBLUND 64 (Bc4-e6) (=13)} (19. Be6 $16) 19... Rbd8 {[%emt 0:02:48][%cal Oe7d5] CPLX 2.7 35 (b7-b5) (=13)} 20. Rae1 {[%emt 0:02:30] CPLX 2.7 19 (b4-b5) (=13)} (20. b5 $5 {[%cal Rb5b6]}) 20... Nd5 {[%emt 0:00:44] BESTDEEP} 21. R6e2 {[%emt 0:06:01] BESTDEEP} ({Much worse is} 21. Bxd5 cxd5 22. Qxd5 Bf7 $11) 21... Bf7 {[%emt 0:03:25] CPLX 2.7 18 (Qc7-d7) (=12)} 22. Qc2 {[%emt 0:00:30] CPLX 2.6 46 (Nd2-e4) (=14)} (22. Ne4 $14) 22... b6 $11 {[%emt 0:00:36] BESTDEEP} 23. axb6 {[%emt 0:00:19] CPLX 3.0 0 (Re1-a1) (=13)} axb6 {[%emt 0:00:11] RECAPT} 24. Bd3 {[%emt 0:00:13] CPLX 2.8 0 (Bc4-b3) (=13)} Bg8 {[%emt 0:01:34] CPLX 2.7 0 (b6-b5) (=10)} 25. Bf5 {[%emt 0:04:07] CPLX 2.5 0 (Nd2-c4) (=12)} c5 {[%emt 0:03:09] CPLX 2.6 42 (b6-b5) (=12)} 26. dxc5 {[%emt 0:00:52] CPLX 2.9} bxc5 {[%emt 0:00:10] RECAPT} 27. b5 {[%emt 0:00:11] EASY} c4 {[%emt 0:02:56] CPLX 2.7 2 (Qc7-a5) (=11)} 28. Nd4 {[%emt 0:06:50][%cal Bf3d4,Bd4c6,Bc6d8][%mdl 32] CPLX 2.6} Be5 {[%emt 0:01:18] CPLX 2.7 19 (Bd6-c5) (=11)} 29. N2f3 {[%emt 0:01:46][%cal Rf3e5] Pair of Knights! CPLX 2.8 30 (Nd4-c6) (=11)} (29. Nc6 $5 {[%cal Rc6d8]}) 29... Qb6 $2 {[%emt 0:01:35] This costs Black the game. MISSDEEP-Be5xd4 182 (Be5xd4) (=19)} (29... Bxd4 $11 30. Nxd4 f3 31. Nxf3 (31. gxf3 g6 $14) 31... Qa5) 30. Nxe5 $18 {[%emt 0:01:06] EASY} fxe5 {[%emt 0:00:02] RECAPT} 31. Rxe5 {[%emt 0:01:29][%cal Be2e5,Be5e8,Be8f8][%mdl 32] Black must now prevent Ne6. RECAPT} Nxc3 $2 {[%emt 0:03:09] CPLX 2.9 280 (f4-f3) (=28)} (31... f3 {keeps fighting.}) 32. Nc6 {[%emt 0:02:22] EASY. White is clearly winning.} ({Weaker is} 32. Qxc3 Rxd4 33. Be6 h6 $16) 32... Nxb5 {[%emt 0:03:01] CPLX 4.2 212 (Rd8-d5) (=35)} (32... Rd5 $142 33. Qxc3 Rxb5 34. Rxb5 Qxb5) 33. Nxd8 {[%emt 0:00:49] EASY} Nd4 {[%emt 0:00:01] [#] EVAL 231 (Rf8xd8) (=43)} 34. Re8 $1 {[%emt 0:02:32] White threatens Nf7+ and mate. EVAL} Nxc2 {[%emt 0:01:17] EVAL 49 (Qb6-f6) (=43)} 35. Rxf8 {[%emt 0:00:03] Weighted Error Value: White=0.12 (very precise) /Black=0.49} 1-0

[Event "1st Serbian League 2022"]
[Site "Vrnjacka Banja"]
[Date "2022.09.20"]
[Round "1.2"]
[White "Ivanovic, Marko"]
[Black "Gurel, Ediz"]
[Result "1-0"]
[ECO "B48"]
[WhiteElo "2265"]
[BlackElo "2437"]
[Annotator "ChessBase"]
[PlyCount "81"]
[EventDate "2022.09.20"]
[EventType "team-tourn"]
[EventCountry "SRB"]
[SourceTitle "playchess.com"]
[Source "ChessBase"]
[SourceQuality "1"]
[TimeControl "40/5400+30:1800+30"]

1. e4 {[%emt 0:00:29]} c5 {[%emt 0:00:05]} 2. Nf3 {[%emt 0:00:11]} e6 {[%emt 0:00:10]} 3. d4 {[%emt 0:00:21]} cxd4 {[%emt 0:00:04]} 4. Nxd4 {[%emt 0:00:08]} Nc6 {[%emt 0:00:28]} 5. Nc3 {[%emt 0:00:11]} Qc7 {[%emt 0:00:05]} 6. Be3 {[%emt 0:00:13]} Nf6 {[%emt 0:01:32]} 7. Qf3 {[%emt 0:02:56]} a6 {[%emt 0:04:15]} 8. O-O-O {[%emt 0:00:45]} Ne5 {[%emt 0:00:28]} 9. Qg3 {[%emt 0:00:57]} h5 {[%emt 0:03:05]} 10. f4 {[%emt 0:09:38]} Neg4 {[%emt 0:00:04]} 11. Bg1 {[%emt 0:00:54]} b5 {[%emt 1:25:44]} 12. Bxb5 {[%emt 0:08:49]} axb5 {[%emt 0:00:00]} 13. Ndxb5 {[%emt 0:00:25]} Qb8 {[%emt 0:00:00]} 14. h3 {[%emt 0:31:33]} Nxe4 {[%emt 0:00:00]} 15. Nxe4 {[%emt 0:00:36]} Qxb5 {[%emt 0:00:00]} 16. Nc3 {[%emt 0:01:21]} Qc6 {[%emt 0:00:00]} 17. hxg4 {[%emt 0:00:28]} Bb7 {[%emt 0:00:00]} 18. Qd3 {[%emt 0:13:14]} Bb4 {[%emt 0:00:00]} 19. Bd4 {[%emt 0:01:19]} Bxc3 {[%emt 0:00:00]} 20. Bxc3 {[%emt 0:00:15]} Rxa2 {[%emt 0:00:00]} 21. Kb1 {[%emt 0:00:37]} Ra4 {[%emt 0:00:00]} 22. gxh5 {[%emt 0:00:28]} Qd5 {[%emt 0:00:00]} 23. Qxd5 {[%emt 0:12:20]} Bxd5 {[%emt 0:00:00]} 24. Bxg7 {[%emt 0:00:07]} Rh7 {[%emt 0:00:00]} 25. h6 {[%emt 0:00:13]} Rxf4 {[%emt 0:00:00]} 26. Rhg1 {[%emt 0:00:18]} Rf2 {[%emt 0:00:00]} 27. g4 {[%emt 0:01:47]} Be4 {[%emt 0:00:00]} 28. Rc1 {[%emt 0:00:06]} Bg6 {[%emt 0:00:00]} 29. g5 {[%emt 0:00:17]} d5 {[%emt 0:01:11]} 30. Rg3 {[%emt 0:01:37]} Kd7 {[%emt 0:00:45]} 31. b4 {[%emt 0:01:58]} Kc6 {[%emt 0:02:02]} 32. Kb2 {[%emt 0:01:30]} Re2 {[%emt 0:01:31]} 33. Kb3 {[%emt 0:00:59]} e5 {[%emt 0:00:34]} 34. Rc3+ {[%emt 0:00:57]} Kb6 {[%emt 0:01:42]} 35. Rc5 {[%emt 0:00:54]} Bf5 {[%emt 0:00:31]} 36. Rf1 {[%emt 0:01:28]} Bg6 {[%emt 0:01:45]} 37. Rf6+ {[%emt 0:00:47]} Kb7 {[%emt 0:00:00]} 38. Rd6 {[%emt 0:00:11]} d4 {[%emt 0:01:16]} 39. b5 {[%emt 0:02:36]} Re1 {[%emt 0:00:29]} 40. Bxe5 {[%emt 0:00:27]} Rb1+ {[%emt 0:00:33]} 41. Ka2 {[%emt 0:30:20]} 1-0

[Event "1st Serbian League 2022"]
[Site "Vrnjacka Banja"]
[Date "2022.09.20"]
[Round "1.3"]
[White "Markus, Robert"]
[Black "Sarenac, Ivan"]
[Result "1-0"]
[ECO "E06"]
[WhiteElo "2615"]
[BlackElo "2402"]
[Annotator "TA"]
[PlyCount "101"]
[EventDate "2022.09.20"]
[EventType "team-tourn"]
[EventCountry "SRB"]
[SourceTitle "playchess.com"]
[Source "ChessBase"]
[SourceQuality "1"]
[TimeControl "40/5400+30:1800+30"]

{[%evp 9,101,20,12,13,21,2,21,0,27,18,34,41,77,91,75,88,85,73,130,123,173,172,265,202,266,95,79,93,88,97,89,96,87,87,87,87,87,85,107,89,94,49,69,70,98,104,106,102,133,122,130,126,132,135,216,220,266,126,241,170,194,187,194,191,194,193,185,110,117,123,127,0,109,109,109,51,112,121,123,93,557,577,638,606,1341,1324,1051,1031,943,906,29986,29987,29994,29988]} 1. d4 {[%emt 0:00:04]} d5 {[%emt 0:00:06]} 2. c4 {[%emt 0:00:11]} e6 {[%emt 0:00:05]} 3. Nf3 {[%emt 0:01:03]} Be7 {[%emt 0:00:26]} 4. g3 {[%emt 0:01:16]} Nf6 {[%emt 0:00:17]} 5. Bg2 {[%emt 0:01:10]} O-O {[%emt 0:00:18]} 6. b3 {[%emt 0:00:39] E06: Closed Catalan: Early deviations.} c5 {[%emt 0:03:23] CPLX 2.0 8 (d5xc4) (=4)} 7. O-O {[%emt 0:06:11] CPLX 2.2 19 (c4xd5) (=10)} cxd4 {[%emt 0:05:06] CPLX 2.1 19 (d5xc4) (=9)} 8. cxd5 {[%emt 0:02:53] CPLX 2.2. The position is equal.} Nxd5 {[%emt 0:01:24] RECAPT 27 (Qd8xd5) (=14)} 9. Nxd4 {[%emt 0:00:08] CPLX 2.2 9 (Bc1-b2) (=7)} Bf6 {[%emt 0:11:25] CPLX 2.2 16 (Qd8-a5) (=14)} 10. Bb2 {[%emt 0:01:48] BESTDEEP} Qb6 {[%emt 0:04:07] CPLX 2.5 36 (Bc8-d7) (=18)} 11. Na3 {[%emt 0:06:44] BESTDEEP} Rd8 {[%emt 0:10:37] CPLX 2.6 0 (Nb8-c6) (=15)} 12. Nc4 {[%emt 0:02:34] EASY} Qa6 {[%emt 0:15:03] ...Nb6 is the strong threat. BESTDEEP} 13. Qc1 {[%emt 0:23:12] [#] BESTDEEP} Bd7 $146 {[%emt 0:16:18] CPLX 2.9 57 (Nd5-b6) (=18)} (13... Nb6 $142) ({Predecessor:} 13... Nb6 14. Rd1 Bd7 15. Nd6 Nd5 16. N4f5 Bxb2 17. Qxb2 f6 18. Rxd5 exf5 19. Nxf5 Nc6 20. Nxg7 Kxg7 21. Rd6 Ne5 22. Rxa6 {1-0 (22) Kalinitschew,S (2423)-Nekrasov,M (2359) Templin 2017}) 14. a4 {[%emt 0:09:31] CPLX 2.8 7 (Rf1-d1) (=4)} Be8 {[%emt 0:21:58] CPLX 2.8 50 (Bf6-e7) (=21)} (14... Be7 $16) 15. Rd1 $1 $18 {[%emt 0:03:04][%cal Od4b5] DEEPSTRONG} Nd7 {[%emt 0:04:42] CPLX 2.8 93 (Bf6-e7) (=28)} (15... Be7 $142 16. Nf5 exf5) 16. Nb5 {[%emt 0:10:36] CPLX 2.7 63 (e2-e4) (=9)} Rac8 {[%emt 0:00:23][%cal Od7e5] CPLX 2.8 64 (Ra8-b8) (=31)} 17. Bxd5 $2 {[%emt 0:08:13] CPLX 3.0 171 (e2-e4) (=22)} (17. e4 $18) 17... exd5 $16 {[%emt 0:00:04] RECAPT} 18. Rxd5 {[%emt 0:00:04] Strongly threatening Rd6. RECAPT} Qe6 {[%emt 0:02:09] CPLX 3.1} 19. Bxf6 $1 {[%emt 0:05:27] White has more active pieces. CPLX 3.3} Nxf6 {[%emt 0:00:12] RECAPT} 20. Rxd8 {[%emt 0:00:28] EASY} Rxd8 {[%emt 0:00:02] RECAPT} 21. Qe3 {[%emt 0:00:07] CPLX 2.3 0 (Nb5-c3) (=17)} (21. Nxa7 $6 Qxe2 22. Rb1 Qh5 $11) 21... Qh3 {[%emt 0:00:25] ( -> ...Ng4). CPLX 2.6} 22. f3 {[%emt 0:01:40] Prevents Ng4. CPLX 3.2} Bc6 {[%emt 0:00:14][%cal Of6g4] White must now prevent ...Ng4! BESTDEEP} 23. Qf2 {[%emt 0:04:58] BESTDEEP} (23. Qxa7 Ng4 $1 {[%mdl 512]} 24. e4 Qxh2+ 25. Kf1 Qh1+ 26. Ke2 Qg2+ 27. Ke1 Qxg3+ 28. Ke2 Qg2+ 29. Ke1 Qg3+ 30. Ke2 Bxe4 $1 {[%mdl 512]} 31. fxe4 Qg2+ 32. Ke1 Qxe4+ 33. Ne3 Qb4+ 34. Nc3 Qxc3+ 35. Ke2 Re8 36. Ra2 Rxe3+) 23... a6 {[%emt 0:00:16] CPLX 2.6 22 (Bc6xb5) (=21)} 24. Nc3 {[%emt 0:10:29][%cal Bb5c3,Bc3d1,Bd1b2][%mdl 32] CPLX 2.6 18 (Nb5-d4) (=15)} h5 {[%emt 0:00:55][%cal Oh5h4] BESTDEEP} 25. Rd1 {[%emt 0:00:00] CPLX 2.4 45 (Ra1-e1) (=17)} Rxd1+ {[%emt 0:01:38] EASY} 26. Nxd1 {[%emt 0:00:00] RECAPT} Qd7 {[%emt 0:00:03] CPLX 2.0 28 (Qh3-f5) (=19)} 27. Ndb2 {[%emt 0:00:00] BESTDEEP} b5 {[%emt 0:00:23] CPLX 2.0} 28. axb5 {[%emt 0:00:00] BESTDEEP} axb5 {[%emt 0:00:08] RECAPT 31 (Bc6xb5) (=19)} 29. Ne5 {[%emt 0:00:00] CPLX 2.2} Qd2 {[%emt 0:00:17] CPLX 2.3 8 (Qd7-e6) (=18)} 30. Nxc6 {[%emt 0:00:00] Hoping for Nd3. DEEPSTRONG} Qxb2 {[%emt 0:00:30][%mdl 4096] Endgame KQN-KQN. BESTDEEP} 31. Qe3 {[%emt 0:00:00] Inhibits Qc1+. CPLX 2.0} g6 {[%emt 0:01:36] CPLX 2.0 81 (Qb2-c2) (=20)} (31... Qc2 $16) 32. Nd4 $18 {[%emt 0:00:07] CPLX 2.0} b4 {[%emt 0:00:58] CPLX 2.0 46 (h5-h4) (=21)} 33. h4 {[%emt 0:00:25] CPLX 2.0 140 (Qe3-e5) (=17)} (33. Qe5 $18 {is more deadly.} Qa1+ 34. Kg2) 33... Qa2 {[%emt 0:01:01] CPLX 2.0 115 (Qb2-a1) (=24)} (33... Qa1+ $16 {was worth a try.} 34. Kf2 Qa5) 34. Kf2 {[%emt 0:01:20] CPLX 2.0 71 (Qe3-e5) (=19)} Qa6 {[%emt 0:00:14] CPLX 2.0 24 (Qa2-a5) (=24)} 35. Nc2 $1 {[%emt 0:01:03] CPLX 2.0} Qb5 {[%emt 0:00:42] CPLX 2.0 7 (Qa6-a5) (=24)} 36. Qd4 {[%emt 0:01:05][%csl LRb4,LRf6] CPLX 2.0} Nd5 {[%emt 0:00:28] [#] EASY} 37. Ne1 $1 {[%emt 0:00:21] DEEPSTRONG} Nc3 {[%emt 0:00:27] [#] BESTDEEP} 38. Nd3 {[%emt 0:00:04] CPLX 3.7 75 (Qd4-d8) (=19)} (38. Qd8+ $1 $18 Kh7 39. Nd3) 38... Qe8 $16 {[%emt 0:00:28] CPLX 3.2} 39. Qe5 {[%emt 0:00:07] BESTDEEP} Qf8 {[%emt 0:00:36] CPLX 3.3} 40. Qd4 {[%emt 0:02:47] CPLX 2.3 127 (Qe5-c7) (=21)} ({Better is} 40. Qc7 $16) 40... Qe7 {[%emt 0:00:31] RELBLUND 109 (Qf8-e8) (=23)} (40... Qe8 $1 $11 {remains equal.} 41. e4 Qb8) 41. e4 {[%emt 0:30:31] CPLX 3.7} Qc7 {[%emt 0:05:09][%cal Oc7g3] Inhibits Qb6. CPLX 2.9} 42. e5 {[%emt 0:00:00] CPLX 3.2 58 (Qd4-c5) (=22)} ({Much less strong is} 42. Nxb4 Qxg3+ 43. Kxg3 Ne2+ 44. Kf2 Nxd4 $11) ({White should play} 42. Qc5 $16 Qd7 43. Ke3 (43. Nxb4 $2 Qd2+ 44. Kf1 Qe2+ 45. Kg1 Qxf3 $19)) 42... Nb5 {[%emt 0:08:24] CPLX 2.3 61 (Qc7-a5) (=24)} ({Black should try} 42... Qa5 $1 $14 43. Nxb4 Qa1) 43. Qc5 $36 {[%emt 0:00:00][%mdl 2048] White is really pushing. BESTDEEP} Qd7 {[%emt 0:00:11] CPLX 2.5} 44. Ke3 {[%emt 0:00:00] CPLX 2.4} ({Don't blunder} 44. Nxb4 $2 Qd2+ 45. Kf1 Nd4 $19) 44... Nc3 $2 {[%emt 0:07:57][%mdl 8192] Loses the game. RELBLUND 400 (Nb5-a3) (=33)} (44... Na3 $16) 45. Nxb4 $18 {[%emt 0:00:00] CPLX 3.6=>BLUNDERREACT} Nd1+ {[%emt 0:00:07] CPLX 3.7 61 (Nc3-b1) (=33)} 46. Ke2 {[%emt 0:00:00] EASY} Nb2 {[%emt 0:00:07] BEVAL 400 (Qd7-b7) (=42)} 47. Nd5 {[%emt 0:00:00] Nf6+ would kill now. BEVAL} Kg7 {[%emt 0:01:19] BEVAL} 48. Kd2 {[%emt 0:00:00] BEVAL} Qh3 {[%emt 0:02:51] EVAL} 49. Qd4 {[%emt 0:00:00] White threatens e6+ and mate. EVAL} Qxg3 {[%emt 0:01:54] RELBLUND 400 (Kg7-h7) (=48)} 50. e6+ {[%emt 0:00:00][%cal Be5e6,Be6e7][%mdl 32] CPLX 4.0=>BLUNDERREACT} Kg8 {[%emt 0:00:04] RELBLUND 7 (Kg7-h7) (=47)} 51. e7 {[%emt 0:00:00] Weighted Error Value: White=0.18 (very precise) /Black=0.57} 1-0

[Event "1st Serbian League 2022"]
[Site "Vrnjacka Banja"]
[Date "2022.09.20"]
[Round "1.4"]
[White "Arsovic, Zoran"]
[Black "Kovacevic, Aleksandar"]
[Result "1/2-1/2"]
[ECO "D27"]
[WhiteElo "2362"]
[BlackElo "2471"]
[Annotator "TA"]
[PlyCount "57"]
[EventDate "2022.09.20"]
[EventType "team-tourn"]
[EventCountry "SRB"]
[SourceTitle "playchess.com"]
[Source "ChessBase"]
[SourceQuality "1"]
[TimeControl "40/5400+30:1800+30"]

{[%evp 24,57,0,0,100,100,119,96,164,165,171,153,155,157,155,141,145,141,526,532,529,500,531,522,507,477,449,167,157,158,156,0,154,0,156,0]} 1. Nf3 {[%emt 0:00:15]} c5 {[%emt 0:00:19]} 2. c4 {[%emt 0:00:46]} Nc6 {[%emt 0:00:10]} 3. Nc3 {[%emt 0:01:05]} Nf6 {[%emt 0:00:19]} 4. e3 {[%emt 0:01:31]} e6 {[%emt 0:01:21]} 5. d4 {[%emt 0:02:06]} d5 {[%emt 0:00:34]} 6. a3 {[%emt 0:00:34]} dxc4 {[%emt 0:00:57]} 7. Bxc4 {[%emt 0:00:31]} a6 {[%emt 0:00:17]} 8. O-O {[%emt 0:05:41]} b5 {[%emt 0:00:22]} 9. Bd3 {[%emt 0:04:59]} cxd4 {[%emt 0:05:19]} 10. exd4 {[%emt 0:01:11]} Be7 {[%emt 0:00:31]} 11. Bc2 {[%emt 0:06:30]} Bb7 {[%emt 0:01:06]} 12. Re1 {[%emt 0:05:08]} O-O {[%emt 0:00:46]} 13. Qd3 {[%emt 0:07:30][%cal Od4d5] BESTDEEP} Re8 {[%emt 0:05:24] RELBLUND 100 (Qd8-c7) (=100). D27: Queen's Gambit Accepted: Classical main line: 7 e4!? and 7 a4.} (13... Qc7 $11 {remains equal.}) 14. d5 $1 $16 {[%emt 0:10:32] DEEPSTRONG=>BLUNDERREACT} exd5 {[%emt 0:08:42] EASY} 15. Bg5 {[%emt 0:00:45] And now Bxf6 would win. White has more active pieces. CPLX 3.3} Ne4 {[%emt 0:06:25] MISSDEEP-Kg8-f8 68 (Kg8-f8) (=56)} (15... Kf8 $16 {is a better defense.}) 16. Nxe4 $40 {[%emt 0:05:17][%mdl 128] Black is in trouble. CPLX 3.5} dxe4 {[%emt 0:00:42] RECAPT} 17. Qxe4 {[%emt 0:00:09] RECAPT} g6 {[%emt 0:00:30] [#] EASY} 18. Qh4 {[%emt 0:07:47] Threatens to win with Bb3. BESTDEEP} h5 {[%emt 0:04:07] CPLX 3.1} 19. Bb3 {[%emt 0:02:50] CPLX 2.7 14 (Ra1-d1) (=2)} Qc7 {[%emt 0:09:31][%cal Oc6a5] [#] DEEPSTRONG} 20. Rad1 $146 {[%emt 0:14:17] BESTDEEP} ({Predecessor:} 20. Qe4 Kg7 21. Bxf7 Kxf7 22. Bh6 Qd7 {0-1 (22) Solana Suarez,E (2315)-Jonkman,H (2320) Tenerife 1999}) 20... Bf8 $2 {[%emt 0:20:02][%mdl 8192] RELBLUND 385 (Be7xg5) (=69)} (20... Bxg5 $16 {is more resistant.} 21. Nxg5 (21. Qxg5 Kg7 $14) 21... Rxe1+ 22. Rxe1 Ne5) 21. Bf4 {[%emt 0:01:03] DEEPSTRONG=>BLUNDERREACT} Rxe1+ {[%emt 0:33:36] EASY} 22. Rxe1 {[%emt 0:01:28] RECAPT} Bd6 {[%emt 0:00:00] CPLX 2.7} 23. Qf6 {[%emt 0:09:04][%cal Of3g5] White wants to mate with Ng5! CPLX 2.6 9 (Qh4-g3) (=2)} Bxf4 {[%emt 0:00:00] EASY} 24. Qxg6+ {[%emt 0:00:07] EASY} Kf8 {[%emt 0:00:00] EASY} 25. Qxh5 {[%emt 0:01:18] CPLX 4.8 282 (Qg6-f6) (=23)} ({Much less strong is} 25. Qh7 Ne5 $18) (25. Qf6 {[%cal Rf6h8]} Ne5 26. Qh8+ (26. Nxe5 Bxe5 27. Qxe5 Qxe5 $16) (26. Nd4 Re8 $17) 26... Ke7 27. Qxh5 (27. Qg7 Bxf3 28. Qxf7+ Kd6 $16)) 25... Kg7 {[%emt 0:00:00] CPLX 4.3=>BLUNDERREACT} 26. Qg4+ {[%emt 0:01:00][%mdl 1024] White has strong compensation. BESTDEEP} Kf8 {[%emt 0:00:00][%cal Oc6e5] EASY} 27. Qh5 {[%emt 0:03:47][%cal Rh5h8] Prevents Ne5. MISSDEEP-Qg4-h4 156 (Qg4-h4) (=31)} Kg7 {[%emt 0:00:00] Against Qh8+. RELBLUND=>BLUNDERREACT} 28. Qg4+ {[%emt 0:01:16] CPLX 4.2 154 (g2-g3) (=38)} Kf8 {[%emt 0:00:00][%cal Oc6e5] [#] EASY} 29. Qh5 $2 {[%emt 0:06:33] Against Ne5.  Weighted Error Value: White=0.49/Black=0.54} ({Only move:} 29. Qh4 $1 $16 {[%cal Rh4h8]} Kg7 30. Qg4+) 1/2-1/2

[Event "1st Serbian League 2022"]
[Site "Vrnjacka Banja"]
[Date "2022.09.20"]
[Round "1.5"]
[White "Brenjo, Slavisa"]
[Black "Radusinovic, Lazar"]
[Result "1/2-1/2"]
[ECO "A16"]
[WhiteElo "2409"]
[BlackElo "2308"]
[Annotator "ChessBase"]
[PlyCount "48"]
[EventDate "2022.09.20"]
[EventType "team-tourn"]
[EventCountry "SRB"]
[SourceTitle "playchess.com"]
[Source "ChessBase"]
[SourceQuality "1"]
[TimeControl "40/5400+30:1800+30"]

1. Nf3 {[%emt 0:00:06]} Nf6 {[%emt 0:00:20]} 2. c4 {[%emt 0:00:08]} g6 {[%emt 0:00:11]} 3. Nc3 {[%emt 0:00:16]} Bg7 {[%emt 0:00:07]} 4. g3 {[%emt 0:00:39]} O-O {[%emt 0:01:01]} 5. Bg2 {[%emt 0:00:14]} d5 {[%emt 0:00:29]} 6. cxd5 {[%emt 0:00:19]} Nxd5 {[%emt 0:00:02]} 7. h4 {[%emt 0:01:06]} h6 {[%emt 0:08:26]} 8. O-O {[%emt 0:01:46]} c5 {[%emt 0:03:27]} 9. Nxd5 {[%emt 0:03:32]} Qxd5 {[%emt 0:00:09]} 10. d3 {[%emt 0:00:10]} Nc6 {[%emt 0:11:24]} 11. Be3 {[%emt 0:02:44]} Qh5 {[%emt 0:06:52]} 12. Rc1 {[%emt 0:11:21]} b6 {[%emt 0:07:41]} 13. Qa4 {[%emt 0:36:16]} Bd7 {[%emt 0:06:19]} 14. b4 {[%emt 0:09:07]} Ne5 {[%emt 0:24:59]} 15. Qa3 {[%emt 0:03:12]} cxb4 {[%emt 0:02:58]} 16. Qxb4 {[%emt 0:00:43]} Nc6 {[%emt 0:01:41]} 17. Qe4 {[%emt 0:06:25]} Rac8 {[%emt 0:02:04]} 18. Rc2 {[%emt 0:03:55]} Qf5 {[%emt 0:07:29]} 19. Qxf5 {[%emt 0:03:21]} Bxf5 {[%emt 0:02:46]} 20. Bd2 {[%emt 0:02:11]} Nd4 {[%emt 0:08:06]} 21. Nxd4 {[%emt 0:00:12]} Bxd4 {[%emt 0:00:06]} 22. Rfc1 {[%emt 0:01:20]} Kg7 {[%emt 0:01:28]} 23. Rc7 {[%emt 0:05:13]} Rxc7 {[%emt 0:02:08]} 24. Rxc7 {[%emt 0:00:03]} a5 {[%emt 0:00:59]} 1/2-1/2